Workbook

Sheet Feuil1
B2: Boulier en base 10
AJ4: Cible
E5: 1 boule | H5: Maxi | N5: Niveau1 | Q5: Niveau2 | T5: Niveau3 | W5: Niveau4 | Z5: Niveau5 | AC5: Niveau6 | AF5: Niveau7 | AJ5: 11111111110
E6: 1 | H6: =+E6*10 -> 10 | K6: 1 | L6: 1 | N6: =IF(Niveau1=K6,1,0) -> 0 | O6: =IF(N6=1,Niv1X,0) -> 0 | P6: =IF(O6=0,0,$K6*O6) -> 0 | Q6: =IF(Niveau2=$K6,1,0) -> 0 | R6: =IF(Q6=1,Niv2X,0) -> 0 | S6: =IF(R6=0,0,$K6*R6) -> 0 | T6: =IF(Niveau3=$K6,1,0) -> 0 | U6: =IF(T6=1,Niv3X,0) -> 0 | V6: =IF(U6=0,0,$K6*U6) -> 0 | W6: =IF(Niveau4=$K6,1,0) -> 0 | X6: =IF(W6=1,Niv4X,0) -> 0 | Y6: =IF(X6=0,0,$K6*X6) -> 0 | Z6: =IF(Niveau5=$K6,1,0) -> 0 | AA6: 0 | AB6: =IF(AA6=0,0,$K6*AA6) -> 0 | AC6: =IF(Niveau6=$K6,1,0) -> 0 | AD6: =IF(AC6=1,Niv6X,0) -> 0 | AE6: =IF(AD6=0,0,$K6*AD6) -> 0 | AF6: =IF(Niveau7=$K6,1,0) -> 0 | AG6: =IF(AF6=1,Niv7X,0) -> 0 | AH6: =IF(AG6=0,0,$K6*AG6) -> 0 | AJ6: =+Cible/AJ7 -> 11.11111111
E7: 10 | H7: =+E7*10 -> 100 | K7: 10 | L7: 10 | N7: 0 | O7: 0 | P7: =IF(O7=0,0,$K7*O7) -> 0 | Q7: 0 | R7: 0 | S7: 0 | T7: 0 | U7: 0 | V7: 0 | W7: 0 | X7: 0 | Y7: 0 | Z7: 0 | AA7: 0 | AB7: 0 | AC7: 0 | AD7: 0 | AE7: 0 | AF7: 0 | AG7: 0 | AH7: 0 | AJ7: =VLOOKUP(Cible,Décision1,2) -> 1000000000 | AK7: =ROUNDDOWN(AJ6,0) -> 11 | AL7: =+Cible-(AJ7*AK7) -> 111111110
E8: 100 | H8: 1000 | K8: 100 | L8: 100 | N8: 0 | O8: 0 | P8: 0 | Q8: 0 | R8: 0 | S8: 0 | T8: 0 | U8: 0 | V8: 0 | W8: 0 | X8: 0 | Y8: 0 | Z8: 0 | AA8: 0 | AB8: 0 | AC8: 0 | AD8: 0 | AE8: 0 | AF8: 0 | AG8: 0 | AH8: 0 | AL8: =IF(AL7=0,0,+AL7/AL9) -> 1.1111111
E9: =+E8*10 -> 1000 | H9: 10000 | K9: =+K8*10 -> 1000 | L9: =+L8*10 -> 1000 | N9: 0 | O9: 0 | P9: 0 | Q9: 0 | R9: 0 | S9: 0 | T9: 0 | U9: 0 | V9: 0 | W9: 0 | X9: 0 | Y9: 0 | Z9: 0 | AA9: 0 | AB9: 0 | AC9: 0 | AD9: 0 | AE9: 0 | AF9: 1 | AG9: 1 | AH9: 1000 | AL9: =IF(AL7=0,0,VLOOKUP(AL7,Décision1,2)) -> 100000000 | AM9: =ROUNDDOWN(AL8,0) -> 1 | AN9: =+AL7-(AM9*AL9) -> 11111110
E10: =+E9*10 -> 10000 | H10: 100000 | K10: =+K9*10 -> 10000 | L10: 10000 | N10: 0 | O10: 0 | P10: 0 | Q10: 0 | R10: 0 | S10: 0 | T10: 0 | U10: 0 | V10: 0 | W10: 0 | X10: 0 | Y10: 0 | Z10: 0 | AA10: 0 | AB10: 0 | AC10: 1 | AD10: 1 | AE10: 10000 | AF10: 0 | AG10: 0 | AH10: 0 | AN10: =IF(AN9=0,0,+AN9/AN11) -> 1.111111
E11: 100000 | H11: 1000000 | K11: 100000 | L11: 100000 | N11: 0 | O11: 0 | P11: 0 | Q11: 0 | R11: 0 | S11: 0 | T11: 0 | U11: 0 | V11: 0 | W11: 0 | X11: 0 | Y11: 0 | Z11: 1 | AA11: 1 | AB11: 100000 | AC11: 0 | AD11: 0 | AE11: 0 | AF11: 0 | AG11: 0 | AH11: 0 | AN11: =IF(AN9=0,0,VLOOKUP(AN9,Décision1,2)) -> 10000000 | AO11: =ROUNDDOWN(AN10,0) -> 1 | AP11: =+AN9-(AO11*AN11) -> 1111110
E12: 1000000 | H12: 10000000 | K12: 1000000 | L12: 1000000 | N12: 0 | O12: 0 | P12: 0 | Q12: 0 | R12: 0 | S12: 0 | T12: 0 | U12: 0 | V12: 0 | W12: 1 | X12: 1 | Y12: 1000000 | Z12: 0 | AA12: 0 | AB12: 0 | AC12: 0 | AD12: 0 | AE12: 0 | AF12: 0 | AG12: 0 | AH12: 0 | AP12: =IF(AP11=0,0,+AP11/AP13) -> 1.11111
E13: 10000000 | H13: 100000000 | K13: 10000000 | L13: 10000000 | N13: 0 | O13: 0 | P13: 0 | Q13: 0 | R13: 0 | S13: 0 | T13: 1 | U13: 1 | V13: 10000000 | W13: 0 | X13: 0 | Y13: 0 | Z13: 0 | AA13: 0 | AB13: 0 | AC13: 0 | AD13: 0 | AE13: 0 | AF13: 0 | AG13: 0 | AH13: 0 | AP13: =IF(AP11=0,0,VLOOKUP(AP11,Décision1,2)) -> 1000000 | AQ13: =ROUNDDOWN(AP12,0) -> 1 | AR13: =+AP11-(AQ13*AP13) -> 111110
E14: 100000000 | H14: 1000000000 | K14: 100000000 | L14: 100000000 | N14: 0 | O14: 0 | P14: 0 | Q14: 1 | R14: 1 | S14: 100000000 | T14: 0 | U14: 0 | V14: 0 | W14: 0 | X14: 0 | Y14: 0 | Z14: 0 | AA14: 0 | AB14: 0 | AC14: 0 | AD14: 0 | AE14: 0 | AF14: 0 | AG14: 0 | AH14: 0 | AR14: =IF(AR13=0,0,+AR13/AR15) -> 1.1111
E15: 1000000000 | H15: 10000000000 | K15: 1000000000 | L15: 1000000000 | N15: =IF(Niveau1=$K15,1,0) -> 1 | O15: 11 | P15: 11000000000 | Q15: 0 | R15: 0 | S15: 0 | T15: 0 | U15: 0 | V15: 0 | W15: 0 | X15: 0 | Y15: 0 | Z15: 0 | AA15: 0 | AB15: 0 | AC15: 0 | AD15: 0 | AE15: 0 | AF15: 0 | AG15: 0 | AH15: 0 | AR15: =IF(AR13=0,0,VLOOKUP(AR13,Décision1,2)) -> 100000 | AS15: =ROUNDDOWN(AR14,0) -> 1 | AT15: =+AR13-(AS15*AR15) -> 11110
E16: =SUM(E6:E15) -> 1111111111 | H16: =SUM(H6:H15) -> 11111111110 | AT16: =IF(AT15=0,0,+AT15/AT17) -> 1.111
AT17: =IF(AT15=0,0,VLOOKUP(AT15,Décision1,2)) -> 10000 | AU17: =ROUNDDOWN(AT16,0) -> 1 | AV17: =+AT15-(AU17*AT17) -> 1110
AV18: =IF(AV17=0,0,+AV17/AV19) -> 1.11
B19: =Cible -> 11111111110 | AV19: =IF(AV17=0,0,VLOOKUP(AV17,Décision1,2)) -> 1000 | AW19: =ROUNDDOWN(AV18,0) -> 1 | AX19: =+AV17-(AW19*AV19) -> 110
B24: =Niveau1 -> 1000000000 | C24: =Niv1X -> 11 | D24: =IF(C24=0,0,B24*C24) -> 11000000000
B25: =Niveau2 -> 100000000 | C25: =Niv2X -> 1 | D25: =IF(C25=0,0,B25*C25) -> 100000000
B26: =Niveau3 -> 10000000 | C26: =Niv3X -> 1 | D26: 10000000
B27: =Niveau4 -> 1000000 | C27: =Niv4X -> 1 | D27: 1000000
B28: =Niveau5 -> 100000 | C28: =Niv5X -> 1 | D28: 100000
B29: =Niveau6 -> 10000 | C29: =Niv6X -> 1 | D29: 10000
B30: =Niveau7 -> 1000 | C30: =Niv7X -> 1 | D30: 1000
B31: Total | D31: =SUM(D24:D30) -> 11111111000 | H31: 16.11.2023 15:25 / PK
